lending/lending_fUSD_20250424
["ID","MTS","AMOUNT","RATE_DAILY","PERIOD"]
[358838707,1745488332598,-1000.0,0.00039,3]
[358838708,1745488332608,-800.0,0.00039,2]
[358838709,1745488332619,-213.0,0.00039,2]
[358838710,1745488332630,-344.91441206,0.00039154,2]
[358838711,1745488332640,-151.0,0.000392,14]
[358838712,1745488332650,-749.404299,0.000392,14]
[358838713,1745488332661,-151.0,0.000392,14]
[358838714,1745488332672,-774.134573,0.000392,14]
[358838715,1745488332683,-631.282846,0.000392,14]
[358838716,1745488332693,-774.134573,0.000392,14]
[358838717,1745488332705,-631.282846,0.000392,14]
[358838718,1745488332717,-151.0,0.000392,14]
[358838719,1745488332727,-500.0,0.000392,2]
[358838720,1745488332738,-1106.0,0.000392,2]
[358838721,1745488332750,-210.08310309,0.0003962,2]
[358838722,1745488332762,-1170.65,0.00039631,2]
[358838723,1745488332773,-2000.0,0.00039642,2]
[358838724,1745488332786,-11728.96,0.000397,14]
[358838725,1745488333154,-200.0,0.000397,60]
[358838726,1745488333170,-50267.92,0.000397,14]
[358838727,1745488333182,-190.45,0.00039726,2]
[358838728,1745488333192,-500.0,0.00039726,15]
[358838729,1745488333202,-500.0,0.00039726,15]
[358838730,1745488333212,-252.33515066,0.00039726,15]
[358838731,1745488333222,-422.11535154,0.00039726,15]
[358838732,1745488333232,-500.0,0.00039726,15]
[358838733,1745488333242,-500.0,0.00039726,15]
[358838734,1745488333253,-500.0,0.00039726,15]
[358838735,1745488333263,-500.0,0.00039726,15]
[358838736,1745488333274,-500.0,0.00039726,15]
[358838737,1745488333284,-150.0,0.00039798,2]
[358838738,1745488333294,-25008.08300016,0.0003988,2]
[358838739,1745488333304,-218.283611,0.0003988,14]
[358838740,1745488333315,-218.283611,0.0003988,14]
[358838741,1745488333325,-160.752394,0.0003988,14]
[358838742,1745488333335,-160.752394,0.0003988,14]
[358838743,1745488333346,-151.0,0.00039972,14]
[358838744,1745488333356,-151.0,0.00039972,14]
[358838745,1745488333367,-225.314361,0.00039972,14]
[358838746,1745488333380,-291.593508,0.00039972,14]
[358838747,1745488333390,-291.593508,0.00039972,14]
[358838748,1745488333399,-8965.00793585,0.00039999,14]
[358838749,1745488333411,-50000.0,0.0004,20]
[358838750,1745488333421,-1235.76222445,0.0004,10]
[358838751,1745488333431,-1539.91019181,0.0004,15]
[358838752,1745488333441,-500.0,0.0004,4]
[358838753,1745488333451,-500.0,0.0004,5]
[358838754,1745488333463,-250.66371045,0.0004,6]
[358838755,1745488333472,-10000.0,0.0004,2]
[358838756,1745488333484,-932.30454894,0.0004,5]
[358838757,1745488333494,-4835.49361546,0.0004,10]
[358838758,1745488333503,-879.58231845,0.0004,2]
[358838759,1745488333514,-2000.0,0.0004,2]
[358838760,1745488333523,-500.0,0.0004,2]
[358838761,1745488333535,-10000.0,0.0004,7]
[358838762,1745488333546,-4530.26885721,0.0004,4]
[358838763,1745488333556,-1000.0,0.0004,5]
[358838764,1745488333566,-1000.0,0.0004,5]
[358838765,1745488333575,-16653.93951551,0.0004,2]
[358838766,1745488333586,-191.23785487,0.0004,2]
[358838767,1745488333596,-379.93358051,0.0004,2]
[358838768,1745488333606,-5081.17376087,0.0004,2]
[358838769,1745488333616,-212.94016022,0.0004,2]
[358838770,1745488333627,-514.77242489,0.0004,2]
[358838771,1745488333636,-714.0,0.0004,4]
[358838772,1745488333646,-522.55989073,0.0004,14]
[358838773,1745488333656,-1074.1946241,0.0004,3]
[358838774,1745488333666,-157.619707,0.0004,14]
[358838775,1745488333677,-157.619707,0.0004,14]
[358838776,1745488333687,-328.24905,0.0004,14]
[358838777,1745488333697,-151.0,0.0004,7]
[358838778,1745488333707,-151.0,0.0004,14]
[358838779,1745488333717,-151.0,0.0004,14]
[358838780,1745488333727,-209.242203,0.0004,14]
[358838781,1745488333738,-151.0,0.0004,14]
[358838782,1745488333748,-151.0,0.0004,14]
[358838783,1745488333757,-173.45141,0.0004,14]
[358838784,1745488333767,-173.45141,0.0004,14]
[358838785,1745488333778,-151.0,0.0004,14]
[358838786,1745488333788,-151.0,0.0004,14]
[358838787,1745488333798,-151.0,0.0004,14]
[358838788,1745488333808,-454.507763,0.0004,14]
[358838789,1745488333818,-454.507763,0.0004,14]
[358838790,1745488333828,-158.070686,0.0004,14]
[358838791,1745488333838,-158.070686,0.0004,14]
[358838792,1745488333848,-281.432388,0.0004,14]
[358838793,1745488333858,-281.432388,0.0004,14]
[358838794,1745488333868,-610.523572,0.0004,14]
[358838795,1745488333878,-610.523572,0.0004,14]
[358838796,1745488333888,-197.01281,0.0004,14]
[358838797,1745488333899,-197.01281,0.0004,14]
[358838798,1745488333909,-151.0,0.0004,14]
[358838799,1745488333920,-151.0,0.0004,14]
[358838800,1745488333929,-151.0,0.0004,14]
[358838801,1745488333939,-151.0,0.0004,14]
[358838802,1745488333949,-151.0,0.0004,14]
[358838803,1745488333959,-215.676443,0.0004,14]
[358838804,1745488333969,-218.161542,0.0004,14]
[358838805,1745488333980,-151.0,0.0004,14]
[358838806,1745488333991,-215.676443,0.0004,14]
[358838807,1745488334000,-151.0,0.0004,14]
[358838808,1745488334010,-151.0,0.0004,14]
[358838809,1745488334020,-165.815131,0.0004,14]
[358838810,1745488334030,-2568.593347,0.0004,14]
[358838811,1745488334040,-2568.593347,0.0004,14]
[358838812,1745488334049,-251.442534,0.0004,14]
[358838813,1745488334059,-251.442534,0.0004,14]
[358838814,1745488334069,-151.0,0.0004,14]
[358838815,1745488334079,-173.05972,0.0004,14]
[358838816,1745488334089,-232.039799,0.0004,14]
[358838817,1745488334099,-232.039799,0.0004,14]
[358838818,1745488334110,-151.0,0.0004,14]
[358838819,1745488334120,-151.0,0.0004,14]
[358838820,1745488334130,-153.96,0.0004,30]
[358838821,1745488334141,-153.96,0.0004,30]
[358838822,1745488334151,-300.0,0.0004,2]
[358838823,1745488334162,-512.650326,0.0004,15]
[358838824,1745488334172,-277.13906868,0.000404,2]
[358838825,1745488334182,-357.6762453,0.00040523,2]
[358838826,1745488334191,-988.5,0.00040525,60]
[358838827,1745488334201,-150.0,0.00040663,2]
[358838828,1745488334211,-200.0,0.000407,63]
[358838829,1745488334221,-187.2791,0.00040891,3]
[358838830,1745488334231,-12178.30601921,0.000409,7]
[358838831,1745488334242,-2000.0,0.00040919,2]
[358838832,1745488334253,-2309.00889889,0.00040989,15]
[358838833,1745488334262,-150.0,0.00040999,3]
[358838834,1745488334272,-50000.0,0.00041,21]
[358838835,1745488334281,-1000.0,0.00041,9]
[358838836,1745488334291,-1000.0,0.00041,8]
[358838837,1745488334300,-14984.74776299,0.00041,14]
[358838838,1745488334310,-207.2,0.00041,28]
[358838839,1745488334319,-850.0,0.00041,2]
[358838840,1745488334330,-218.283611,0.00041,14]
[358838841,1745488334340,-218.283611,0.00041,14]
[358838842,1745488334351,-918.0,0.00041,2]
[358838843,1745488334361,-796.0,0.00041,2]
[358838844,1745488334374,-431.599,0.00041,2]
[358838845,1745488334383,-736.144,0.00041,2]
[358838846,1745488334394,-578.0,0.00041,2]
[358838847,1745488334403,-1732.353,0.00041,2]
[358838848,1745488334414,-910.0,0.00041,2]
[358838849,1745488334423,-50267.92,0.00041,14]
[358838850,1745488334432,-700.0,0.0004107,3]
[358838851,1745488334443,-400.0,0.0004107,3]
[358838852,1745488334452,-700.0,0.0004107,3]
[358838853,1745488334462,-400.0,0.0004107,3]
[358838854,1745488334472,-700.0,0.0004107,3]
[358838855,1745488334481,-400.0,0.0004107,3]
[358838856,1745488334490,-700.0,0.0004107,3]
[358838857,1745488334499,-400.0,0.0004107,3]
[358838858,1745488334509,-50139.72270751,0.0004108,2]
[358838859,1745488334518,-1000.0,0.0004108,28]
[358838860,1745488334527,-1000.0,0.0004108,28]
[358838861,1745488334537,-1000.0,0.0004108,28]
[358838862,1745488334546,-1000.0,0.0004108,28]
[358838863,1745488334556,-1000.0,0.0004108,28]
[358838864,1745488334566,-1000.0,0.0004108,28]
[358838865,1745488334575,-1000.0,0.0004108,28]
[358838866,1745488334585,-1000.0,0.0004108,28]
[358838867,1745488334596,-1000.0,0.0004108,28]
[358838868,1745488334606,-1000.0,0.0004108,28]
[358838869,1745488334616,-1000.0,0.0004108,28]
[358838870,1745488334625,-1000.0,0.0004108,28]
[358838871,1745488334635,-1000.0,0.0004108,28]
[358838872,1745488334644,-1000.0,0.0004108,28]
[358838873,1745488334654,-1000.0,0.0004108,28]
[358838874,1745488334664,-1000.0,0.0004108,28]
[358838875,1745488334674,-1000.0,0.0004108,28]
[358838876,1745488334684,-1000.0,0.0004108,28]
[358838877,1745488334694,-1000.0,0.0004108,28]
[358838878,1745488334703,-1000.0,0.0004108,28]
[358838879,1745488334713,-1000.0,0.0004108,28]
[358838880,1745488334723,-1000.0,0.0004108,28]
[358838881,1745488334733,-1000.0,0.0004108,28]
[358838882,1745488334743,-1000.0,0.0004108,28]
[358838883,1745488334752,-1000.0,0.0004108,28]
[358838884,1745488334762,-1000.0,0.0004108,28]
[358838885,1745488334772,-1000.0,0.0004108,28]
[358838886,1745488334781,-1000.0,0.0004108,28]
[358838887,1745488334791,-1000.0,0.0004108,28]
[358838888,1745488334800,-1000.0,0.0004108,28]
[358838889,1745488334810,-1000.0,0.0004108,28]
[358838890,1745488334820,-1000.0,0.0004108,28]
[358838891,1745488334829,-1000.0,0.0004108,28]
[358838892,1745488334837,-1000.0,0.0004108,28]
[358838893,1745488334848,-1000.0,0.0004108,28]
[358838894,1745488334856,-1000.0,0.0004108,28]
[358838895,1745488334865,-1000.0,0.0004108,28]
[358838896,1745488334874,-1000.0,0.0004108,28]
[358838897,1745488334883,-1000.0,0.0004108,28]
[358838898,1745488334892,-1000.0,0.0004108,28]
[358838899,1745488334902,-1000.0,0.0004108,28]
[358838900,1745488334911,-1000.0,0.0004108,28]
[358838901,1745488334921,-1000.0,0.0004108,28]
[358838902,1745488334932,-1000.0,0.0004108,28]
[358838903,1745488334941,-1000.0,0.0004108,28]
[358838904,1745488334952,-1000.0,0.0004108,28]
[358838905,1745488334962,-1000.0,0.0004108,28]
[358838906,1745488334971,-1000.0,0.0004108,28]
[358838907,1745488334981,-1000.0,0.0004108,28]
[358838908,1745488334991,-1000.0,0.0004108,28]
[358838909,1745488335001,-1000.0,0.0004108,28]
[358838910,1745488335011,-1000.0,0.0004108,28]
[358838911,1745488335020,-1000.0,0.0004108,28]
[358838912,1745488335030,-1000.0,0.0004108,28]
[358838913,1745488335040,-1000.0,0.0004108,28]
[358838914,1745488335049,-1000.0,0.0004108,28]
[358838915,1745488335060,-1000.0,0.0004108,28]
[358838916,1745488335070,-1000.0,0.0004108,28]
[358838917,1745488335080,-1000.0,0.0004108,28]
[358838918,1745488335089,-1000.0,0.0004108,28]
[358838919,1745488335099,-1000.0,0.0004108,28]
[358838920,1745488335109,-1000.0,0.0004108,28]
[358838921,1745488335118,-1000.0,0.0004108,28]
[358838922,1745488335128,-1000.0,0.0004108,28]
[358838923,1745488335138,-695.478459,0.0004108,28]
[358838924,1745488335148,-160.752394,0.0004108,14]
[358838925,1745488335159,-160.752394,0.0004108,14]
[358838926,1745488335168,-500.0,0.00041095,2]
[358838927,1745488335178,-500.0,0.00041095,2]
[358838928,1745488335188,-500.0,0.00041095,2]
[358838929,1745488335197,-500.0,0.00041095,2]
[358838930,1745488335206,-500.0,0.00041095,2]
[358838931,1745488335216,-500.0,0.00041095,2]
[358838932,1745488335226,-500.0,0.00041095,2]
[358838933,1745488335235,-500.0,0.00041095,2]
[358838934,1745488335246,-500.0,0.00041095,2]
[358838935,1745488335255,-500.0,0.00041095,2]
[358838936,1745488335265,-500.0,0.00041095,2]
[358838937,1745488335274,-500.0,0.00041095,2]
[358838938,1745488335284,-500.0,0.00041095,2]
[358838939,1745488335294,-500.0,0.00041095,2]
[358838940,1745488335305,-586.29213094,0.00041095,2]
[358838941,1745488335317,-500.0,0.00041095,2]
[358838942,1745488335328,-500.0,0.00041095,2]
[358838943,1745488335338,-173.45141,0.00041095,14]
[358838944,1745488335349,-173.45141,0.00041095,14]
[358838945,1745488335358,-151.0,0.00041095,14]
[358838946,1745488335370,-151.0,0.00041095,14]
[358838947,1745488335379,-151.0,0.00041095,14]
[358838948,1745488335389,-454.507763,0.00041095,14]
[358838949,1745488335399,-454.507763,0.00041095,14]
[358838950,1745488335409,-158.070686,0.00041095,14]
[358838951,1745488335418,-158.070686,0.00041095,14]
[358838952,1745488335427,-281.432388,0.00041095,14]
[358838953,1745488335437,-281.432388,0.00041095,14]
[358838954,1745488335447,-197.01281,0.00041095,14]
[358838955,1745488335457,-197.01281,0.00041095,14]
[358838956,1745488335466,-151.0,0.00041095,14]
[358838957,1745488335476,-151.0,0.00041095,14]
[358838958,1745488335486,-215.676443,0.00041095,14]
[358838959,1745488335496,-151.10145,0.00041095,14]
[358838960,1745488335623,-215.676443,0.00041095,14]
[358838961,1745488335634,-151.0,0.00041095,14]
[358838962,1745488335643,-2568.593347,0.00041095,14]
[358838963,1745488335654,-2568.593347,0.00041095,14]
[358838964,1745488335663,-291.593508,0.00041095,14]
[358838965,1745488335673,-291.593508,0.00041095,14]
[358838966,1745488335683,-999.0,0.00041095,2]
[358838967,1745488335691,-500.0,0.00041095,2]
[358838968,1745488335701,-190.45,0.00041095,120]
[358838969,1745488335711,-500.0,0.00041095,30]
[358838970,1745488335720,-500.0,0.00041095,30]
[358838971,1745488335729,-500.0,0.00041095,30]
[358838972,1745488335739,-500.0,0.00041095,30]
[358838973,1745488335748,-500.0,0.00041095,30]
[358838974,1745488335757,-500.0,0.00041095,30]
[358838975,1745488335766,-1898.22,0.00041095,7]
[358838976,1745488335775,-531.80863245,0.00041095,7]
[358838977,1745488335784,-3500.0,0.00041095,10]
[358838978,1745488335795,-500.0,0.00041096,10]
[358838979,1745488335804,-4000.0,0.00041096,60]
[358838980,1745488335813,-2000.0,0.000411,2]
[358838981,1745488335822,-500.0,0.00041369,2]
[358838982,1745488335831,-535.39528087,0.00041369,2]
[358838983,1745488335840,-398.70939584,0.00041369,2]
[358838984,1745488335851,-497.40675267,0.00041369,2]
[358838985,1745488335860,-999.0,0.00041369,2]
[358838986,1745488335868,-500.0,0.00041369,2]
[358838987,1745488335878,-1898.22,0.00041369,7]
[358838988,1745488335887,-3500.0,0.00041369,10]
[358838989,1745488335896,-150.0,0.00041528,2]
[358838990,1745488335905,-157.619707,0.00041539,14]
[358838991,1745488335915,-157.619707,0.00041539,14]
[358838992,1745488335924,-500.0,0.00041643,2]
[358838993,1745488335934,-999.0,0.00041643,2]
[358838994,1745488335944,-500.0,0.00041643,2]
[358838995,1745488335953,-1898.22,0.00041643,7]
[358838996,1745488335962,-3500.0,0.00041643,10]
[358838997,1745488335972,-988.42771834,0.00041644,10]
[358838998,1745488335981,-200.0,0.000417,66]
[358838999,1745488335991,-370.91026638,0.00041892,2]
[358839000,1745488336001,-1170.65,0.00041895,2]
[358839001,1745488336011,-500.0,0.00041917,2]
[358839002,1745488336020,-999.0,0.00041917,2]
[358839003,1745488336030,-500.0,0.00041917,2]
[358839004,1745488336039,-1898.22,0.00041917,7]
[358839005,1745488336048,-3500.0,0.00041917,10]
[358839006,1745488336057,-50000.0,0.00042,22]
[358839007,1745488336066,-814.0,0.00042,10]
[358839008,1745488336076,-72042.03488726,0.00042,2]
[358839009,1745488336085,-3106.9381253,0.00042,2]
[358839010,1745488336094,-198.976851,0.00042,7]
[358839011,1745488336103,-151.0,0.00042,14]
[358839012,1745488336114,-187.133543,0.00042,14]
[358839013,1745488336123,-11728.96,0.00042,14]
[358839014,1745488336133,-213.0,0.00042,2]
[358839015,1745488336143,-1338.54020287,0.0004201,2]
[358839016,1745488336152,-328.24905,0.00042047,14]
[358839017,1745488336161,-151.0,0.00042047,14]
[358839018,1745488336171,-151.0,0.00042047,14]
[358839019,1745488336180,-151.0,0.00042047,14]
[358839020,1745488336190,-500.0,0.00042191,2]
[358839021,1745488336200,-151.0,0.00042191,14]
[358839022,1745488336210,-151.0,0.00042191,14]
[358839023,1745488336219,-999.0,0.00042191,2]
[358839024,1745488336229,-500.0,0.00042191,2]
[358839025,1745488336239,-1898.22,0.00042191,7]
[358839026,1745488336248,-3500.0,0.00042191,10]
[358839027,1745488336258,-152.69216,0.00042249,30]
[358839028,1745488336268,-150.0,0.00042394,2]
[358839029,1745488336278,-152.69216,0.00042449,30]
[358839030,1745488336288,-500.0,0.00042465,2]
[358839031,1745488336299,-999.0,0.00042465,2]
[358839032,1745488336308,-500.0,0.00042465,2]
[358839033,1745488336318,-190.45,0.00042465,120]
[358839034,1745488336328,-1898.22,0.00042465,7]
[358839035,1745488336337,-3500.0,0.00042465,10]
[358839036,1745488336348,-1000.0,0.00042466,14]
[358839037,1745488336358,-484.458,0.00042489,64]
[358839038,1745488336370,-610.523572,0.000425,14]
[358839039,1745488336379,-610.523572,0.000425,14]
[358839040,1745488336389,-151.0,0.000425,14]
[358839041,1745488336399,-151.0,0.000425,14]
[358839042,1745488336408,-245.253898,0.000425,14]
[358839043,1745488336419,-151.0,0.000425,14]
[358839044,1745488336429,-151.0,0.000425,14]
[358839045,1745488336438,-251.442534,0.000425,14]
[358839046,1745488336448,-251.442534,0.000425,14]
[358839047,1745488336457,-232.039799,0.000425,14]
[358839048,1745488336467,-232.039799,0.000425,14]
[358839049,1745488336476,-1000.0,0.00042603,14]
[358839050,1745488336486,-152.69216,0.00042649,30]
[358839051,1745488336495,-5609.34,0.000427,14]
[358839052,1745488336504,-200.0,0.000427,69]
[358839053,1745488336513,-500.0,0.00042739,2]
[358839054,1745488336522,-999.0,0.00042739,2]
[358839055,1745488336532,-500.0,0.00042739,2]
[358839056,1745488336541,-1898.22,0.00042739,7]
[358839057,1745488336551,-3500.0,0.00042739,10]
[358839058,1745488336560,-1000.0,0.0004274,14]
[358839059,1745488336570,-152.69216,0.00042849,30]
[358839060,1745488336579,-1000.0,0.00042877,14]
[358839061,1745488336590,-150.0,0.00042992,3]
[358839062,1745488336599,-67992.14840119,0.00042993,2]
[358839063,1745488336610,-50000.0,0.00043,23]
[358839064,1745488336619,-191356.49428629,0.00043,2]
[358839065,1745488336629,-10000.0,0.00043,7]
[358839066,1745488336639,-56398.60825362,0.00043,2]
[358839067,1745488336649,-157.619707,0.00043,14]
[358839068,1745488336659,-157.619709,0.00043,14]
[358839069,1745488336669,-173.45141,0.00043,14]
[358839070,1745488336678,-173.45141,0.00043,14]
[358839071,1745488336688,-151.0,0.00043,14]
[358839072,1745488336698,-151.0,0.00043,14]
[358839073,1745488336708,-151.0,0.00043,14]
[358839074,1745488336717,-454.507763,0.00043,14]
[358839075,1745488336726,-158.070686,0.00043,14]
[358839076,1745488336735,-454.507763,0.00043,14]
[358839077,1745488336745,-158.070686,0.00043,14]
[358839078,1745488336754,-281.432388,0.00043,14]
[358839079,1745488336763,-281.432388,0.00043,14]
[358839080,1745488336773,-900.0,0.00043,2]
[358839081,1745488336783,-197.01281,0.00043,14]
[358839082,1745488336793,-197.01281,0.00043,14]
[358839083,1745488336802,-151.0,0.00043,14]
[358839084,1745488336813,-151.0,0.00043,14]
[358839085,1745488336823,-215.676443,0.00043,14]
[358839086,1745488336832,-215.676443,0.00043,14]
[358839087,1745488336842,-151.0,0.00043,14]
[358839088,1745488336851,-2568.593347,0.00043,14]
[358839089,1745488336860,-2568.593347,0.00043,14]
[358839090,1745488336870,-291.593508,0.00043,14]
[358839091,1745488336879,-291.593508,0.00043,14]
[358839092,1745488336890,-151.0,0.00043,14]
[358839093,1745488336900,-218.283611,0.00043,14]
[358839094,1745488336910,-218.283611,0.00043,14]
[358839095,1745488336919,-160.752394,0.00043,14]
[358839096,1745488336928,-160.752394,0.00043,14]
[358839097,1745488336938,-427.965258,0.00043,14]
[358839098,1745488336948,-427.965258,0.00043,14]
[358839099,1745488336957,-236.765913,0.00043,14]
[358839100,1745488336967,-236.765913,0.00043,14]
[358839101,1745488336977,-500.0,0.00043013,2]
[358839102,1745488336986,-999.0,0.00043013,2]
[358839103,1745488336995,-500.0,0.00043013,2]
[358839104,1745488337005,-1898.22,0.00043013,7]
[358839105,1745488337014,-3500.0,0.00043013,10]
[358839106,1745488337024,-1000.0,0.00043014,14]
[358839107,1745488337033,-152.69216,0.00043049,30]
[358839108,1745488337043,-1000.0,0.00043151,14]
[358839109,1745488337053,-152.69216,0.00043249,30]
[358839110,1745488337063,-150.0,0.00043259,2]
[358839111,1745488337072,-384.63394623,0.00043261,2]
[358839112,1745488337082,-500.0,0.00043287,2]
[358839113,1745488337092,-999.0,0.00043287,2]
[358839114,1745488337102,-500.0,0.00043287,2]
[358839115,1745488337112,-1898.22,0.00043287,7]
[358839116,1745488337123,-3500.0,0.00043287,10]
[358839117,1745488337133,-1000.0,0.00043288,14]
[358839118,1745488337142,-156161.62413367,0.000433,5]
[358839119,1745488337152,-328.24905,0.000433,14]
[358839120,1745488337163,-151.0,0.000433,14]
[358839121,1745488337174,-296.87055,0.000433,14]
[358839122,1745488337183,-151.0,0.000433,14]
[358839123,1745488337193,-151.0,0.000433,14]
[358839124,1745488337203,-151.0,0.000433,14]
[358839125,1745488337213,-151.0,0.000433,14]
[358839126,1745488337223,-476.903133,0.000433,14]
[358839127,1745488337235,-476.903133,0.000433,14]
[358839128,1745488337246,-151.0,0.000433,14]
[358839129,1745488337255,-151.0,0.000433,14]
[358839130,1745488337265,-151.0,0.000433,14]
[358839131,1745488337274,-1234.035919,0.000433,14]
[358839132,1745488337284,-1234.035919,0.000433,14]
[358839133,1745488337293,-188.448022,0.000433,14]
[358839134,1745488337303,-188.448022,0.000433,14]
[358839135,1745488337314,-251.334761,0.000433,14]
[358839136,1745488337324,-251.334761,0.000433,14]
[358839137,1745488337333,-1000.0,0.00043425,14]
[358839138,1745488337343,-151.0,0.00043425,14]
[358839139,1745488337354,-251.442534,0.00043425,14]
[358839140,1745488337364,-251.442534,0.00043425,14]
[358839141,1745488337377,-232.039799,0.00043425,14]
[358839142,1745488337387,-232.03979107,0.00043425,14]
[358839143,1745488337397,-152.69216,0.00043449,30]
[358839144,1745488337407,-500.0,0.00043561,2]
[358839145,1745488337417,-610.523572,0.00043561,14]
[358839146,1745488337426,-610.523572,0.00043561,14]
[358839147,1745488337436,-151.0,0.00043561,14]
[358839148,1745488337449,-151.0,0.00043561,14]
[358839149,1745488337460,-151.0,0.00043561,14]
[358839150,1745488337470,-999.0,0.00043561,2]
[358839151,1745488337480,-500.0,0.00043561,2]
[358839152,1745488337489,-151.0,0.00043561,14]
[358839153,1745488337499,-154.057701,0.00043561,14]
[358839154,1745488337508,-236.460482,0.00043561,14]
[358839155,1745488337518,-480.552712,0.00043561,14]
[358839156,1745488337528,-480.552712,0.00043561,14]
[358839157,1745488337537,-236.460482,0.00043561,14]
[358839158,1745488337547,-529.535086,0.00043561,14]
[358839159,1745488337558,-529.535086,0.00043561,14]
[358839160,1745488337567,-1321.286397,0.00043561,14]
[358839161,1745488337576,-1321.286397,0.00043561,14]
[358839162,1745488337587,-347.911459,0.00043561,14]
[358839163,1745488337597,-347.911459,0.00043561,14]
[358839164,1745488337607,-194.637015,0.00043561,14]
[358839165,1745488337616,-194.637015,0.00043561,14]
[358839166,1745488337625,-1898.22,0.00043561,7]
[358839167,1745488337634,-3500.0,0.00043561,10]
[358839168,1745488337644,-390.516107,0.00043561,14]
[358839169,1745488337654,-390.516107,0.00043561,14]
[358839170,1745488337664,-1000.0,0.00043562,14]
[358839171,1745488337674,-152.69216,0.00043649,30]
[358839172,1745488337684,-1000.0,0.00043699,14]
[358839173,1745488337694,-200.0,0.000437,72]
[358839174,1745488337705,-2000.0,0.00043744,2]
[358839175,1745488337715,-2000.0,0.000438,2]
[358839176,1745488337725,-500.0,0.00043835,2]
[358839177,1745488337735,-999.0,0.00043835,2]
[358839178,1745488337745,-500.0,0.00043835,2]
[358839179,1745488337755,-190.45,0.00043835,120]
[358839180,1745488337765,-1898.22,0.00043835,7]
[358839181,1745488337775,-2995.7204451,0.00043835,10]
[358839182,1745488337784,-150.0,0.00043835,3]
[358839183,1745488337793,-600.0,0.00043835,2]
[358839184,1745488337803,-600.0,0.00043835,2]
[358839185,1745488337812,-600.0,0.00043835,2]
[358839186,1745488337821,-600.0,0.00043835,2]
[358839187,1745488337830,-600.0,0.00043835,2]
[358839188,1745488337840,-600.0,0.00043835,2]
[358839189,1745488337851,-600.0,0.00043835,2]
[358839190,1745488337860,-554.56151935,0.00043835,2]
[358839191,1745488337869,-376.32899658,0.00043836,2]
[358839192,1745488337879,-1000.0,0.00043836,9]
[358839193,1745488337888,-1000.0,0.00043836,9]
[358839194,1745488337897,-1000.0,0.00043836,9]
[358839195,1745488337907,-1000.0,0.00043836,9]
[358839196,1745488337916,-1000.0,0.00043836,9]
[358839197,1745488337926,-1000.0,0.00043836,9]
[358839198,1745488337936,-1000.0,0.00043836,9]
[358839199,1745488337945,-1000.0,0.00043836,9]
[358839200,1745488337955,-1000.0,0.00043836,9]
[358839201,1745488337966,-1000.0,0.00043836,9]
[358839202,1745488337975,-1000.0,0.00043836,9]
[358839203,1745488337984,-1000.0,0.00043836,9]
[358839204,1745488337994,-1000.0,0.00043836,9]
[358839205,1745488338003,-1000.0,0.00043836,9]
[358839206,1745488338013,-1000.0,0.00043836,9]